fUSD/lending_fUSD_20241219
["ID","MTS","AMOUNT","RATE_DAILY","PERIOD"]
[346038153,1734649850816,-339.15102588,0.0002389,4]
[346038154,1734649850825,-44.38897411,0.00025,2]
[346038155,1734649850835,-844.45999967,0.00025,2]
[346038156,1734649851006,-411.14884864,0.00023887,4]
[346038157,1734649851017,-88.85115136,0.00023887,4]
[346038158,1734649851027,-500.0,0.00023887,4]
[346038159,1734649851036,-806.0,0.00024,2]
[346038160,1734649851045,-150.0,0.00024751,2]
[346038161,1734649851054,-150.0,0.00024768,2]
[346038162,1734649851063,-150.0,0.00024769,2]
[346038163,1734649851072,-150.0,0.0002481,2]
[346038164,1734649851082,-150.0,0.00024845,2]
[346038165,1734649851090,-150.0,0.00024871,2]
[346038166,1734649851099,-7487.24884864,0.00025,2]
[346038167,1734649851208,-150.0,0.00024826,2]
[346038168,1734649851217,-150.0,0.00024849,2]
[346038169,1734649851226,-150.0,0.00024906,2]
[346038170,1734649851235,-150.0,0.00024945,2]
[346038171,1734649851244,-51560.52999999,0.00025,2]
[346038172,1734649851255,-6707.5,0.00025,2]
[346038173,1734649851265,-120010.0,0.00025,2]
[346038174,1734649851276,-611.7733463,0.00025,2]
[346038175,1734649851291,-150.0,0.00024846,2]
[346038176,1734649851300,-30477.11432651,0.00025,2]
[346038177,1734649851311,-983.85,0.00025,2]
[346038178,1734649851343,-500.0,0.0002389,4]
[346038179,1734649851352,-500.0,0.00024164,4]
[346038180,1734649851362,-372.38,0.000246,2]
[346038181,1734649851373,-832.0130419,0.00025,2]
[346038182,1734649851384,-577.53725545,0.00025,2]
[346038183,1734649851394,-1076.76380053,0.00025,2]
[346038184,1734649851405,-5337.49666821,0.00025,2]
[346038185,1734649851420,-3983.75590527,0.00025,2]
[346038186,1734649851431,-1479.6536828,0.00025,2]
[346038187,1734649851441,-3045.65,0.00025,2]
[346038188,1734649851453,-1144.4051182,0.00025,2]
[346038189,1734650263788,154.29,0.00010137,2]
[346038196,1734650969091,-170.9675366,0.000193,5]
[346038202,1734651031780,-2093.76064816,0.000192,5]
[346038203,1734651031792,-972.65235318,0.000192,5]
[346038206,1734651031901,-467.58699866,0.000192,5]
[346038207,1734651031911,-403.61,0.00021518,2]
[346038208,1734651031921,-150.0,0.00022488,4]
[346038209,1734651031930,-150.0,0.00022488,4]
[346038210,1734651031940,-150.0,0.00022488,4]
[346038211,1734651031950,-999.49981363,0.000225,2]
[346038212,1734651031959,-174.81,0.00022784,2]
[346038213,1734651031968,-150.0,0.00022904,4]
[346038214,1734651031978,-250.0,0.00022971,2]
[346038215,1734651031987,-250.0,0.00023003,2]
[346038216,1734651031997,-1000.0,0.00023016,2]
[346038217,1734651032007,-569.37,0.00023053,2]
[346038218,1734651032016,-192.16121,0.00023088,7]
[346038219,1734651032026,-155.95,0.00023164,30]
[346038220,1734651032035,-192.16121,0.00023288,7]
[346038221,1734651032044,-201.48,0.00023297,2]
[346038222,1734651032054,-500.0,0.00023305,2]
[346038223,1734651032064,-150.0,0.00023321,4]
[346038224,1734651032073,-500.0,0.00023415,7]
[346038225,1734651032083,-159.15,0.00023419,2]
[346038226,1734651032092,-192.16121,0.00023488,7]
[346038227,1734651032102,-300.0,0.00023499,2]
[346038228,1734651032111,-1126.83,0.00023565,2]
[346038229,1734651032120,-192.16121,0.00023688,7]
[346038230,1734651032134,-920.28,0.00023689,7]
[346038231,1734651032143,-152.0,0.00023694,3]
[346038232,1734651032153,-150.0,0.00023737,4]
[346038233,1734651032162,-433.628,0.0002375,2]
[346038234,1734651032172,-403.61,0.00023782,2]
[346038235,1734651032185,-153.498645,0.00023831,4]
[346038236,1734651032194,-324.61,0.00023886,5]
[346038237,1734651032204,-261.55,0.00023887,4]
[346038238,1734651032214,-471.00775353,0.00023887,4]
[346038239,1734651032224,-467.60152027,0.0002389,4]
[346038240,1734651032405,-32.39847973,0.0002389,4]
[346038243,1734651032415,-500.0,0.0002389,4]
[346038244,1734651032425,-406.59,0.0002389,4]
[346038245,1734651032434,-159.91820872,0.0002389,4]
[346038247,1734651032445,-507.41932715,0.0002389,4]
[346038249,1734651032455,-605.55,0.0002389,4]
[346038251,1734651032464,-1000.0,0.0002389,5]
[346038253,1734651032474,-416.73,0.0002389,4]
[346038255,1734651032484,-500.0,0.0002389,4]
[346038257,1734651032493,-472.26,0.0002389,4]
[346038259,1734651032503,-500.0,0.0002389,4]
[346038275,1734651032513,-533.6,0.0002389,4]
[346038276,1734651032713,-500.0,0.0002389,4]
[346038277,1734651032723,-500.0,0.0002389,4]
[346038278,1734651032733,-500.0,0.0002389,4]
[346038279,1734651032742,-500.0,0.0002389,4]
[346038280,1734651032752,-500.0,0.0002389,4]
[346038281,1734651032762,-500.0,0.0002389,4]
[346038282,1734651032777,-381.98,0.0002389,4]
[346038283,1734651032787,-347.46607853,0.00023899,4]
[346038284,1734651032795,-498.26820708,0.00023899,4]
[346038285,1734651032821,-1.73179292,0.00023899,4]
[346038286,1734651032830,-500.0,0.00023899,4]
[346038287,1734651032841,-500.0,0.00023899,4]
[346038288,1734651032850,-500.0,0.00023899,4]
[346038289,1734651032860,-500.0,0.00023899,4]
[346038290,1734651032870,-574.20388951,0.00023899,2]
[346038291,1734651032887,-1100.0,0.000239,8]
[346038292,1734651032896,-303.66404175,0.000239,2]
[346038293,1734651032906,-206.07,0.00023988,2]
[346038294,1734651032915,-154.09,0.0002399,2]
[346038295,1734651032925,-500.0,0.00023991,4]
[346038296,1734651032935,-529.71,0.00023991,4]
[346038297,1734651032944,-1000.0,0.00023991,5]
[346038298,1734651032953,-500.0,0.00023991,4]
[346038299,1734651032963,-500.0,0.00023991,4]
[346038300,1734651032972,-500.0,0.00023991,4]
[346038301,1734651032981,-500.0,0.00023991,4]
[346038302,1734651032990,-500.0,0.00023991,4]
[346038303,1734651032999,-500.0,0.00023991,4]
[346038304,1734651033008,-500.0,0.00023991,4]
[346038305,1734651033017,-500.0,0.00023991,4]
[346038306,1734651033027,-169.63545495,0.00023992,4]
[346038307,1734651033038,-330.36454505,0.00023992,4]
[346038308,1734651033047,-91.63545495,0.00023992,4]
[346038309,1734651033059,-184.6870203,0.00023992,4]
[346038310,1734651033068,-500.0,0.00023992,4]
[346038311,1734651033077,-240.837551,0.00023998,4]
[346038312,1734651033086,-500.0,0.00023998,4]
[346038313,1734651033095,-500.0,0.00023998,4]
[346038314,1734651033103,-500.0,0.00023998,4]
[346038315,1734651033112,-740.05,0.00023998,4]
[346038316,1734651033121,-500.0,0.00023998,4]
[346038317,1734651033134,-500.0,0.00023998,4]
[346038318,1734651033143,-500.0,0.00023998,4]
[346038319,1734651033152,-233.8918687,0.00023998,4]
[346038320,1734651033163,-266.1081313,0.00023998,4]
[346038321,1734651033173,-500.0,0.00023998,4]
[346038322,1734651033182,-500.0,0.00023998,4]
[346038323,1734651033191,-301.13,0.00023998,4]
[346038324,1734651033200,-500.0,0.00023998,4]
[346038325,1734651033209,-500.0,0.00023998,4]
[346038326,1734651033218,-695.51137804,0.00023998,4]
[346038327,1734651033229,-1545.91862196,0.00023998,4]
[346038328,1734651033238,-500.0,0.00023998,4]
[346038329,1734651033248,-219.38137234,0.00023998,4]
[346038330,1734651033266,-652.48802533,0.00023998,4]
[346038331,1734651033277,-155.57060233,0.00023998,4]
[346038332,1734651033286,-500.0,0.00023998,4]
[346038333,1734651033295,-500.0,0.00023998,4]
[346038334,1734651033304,-500.0,0.00023998,4]
[346038335,1734651033313,-500.0,0.00023998,4]
[346038336,1734651033322,-500.0,0.00023998,4]
[346038337,1734651033331,-500.0,0.00023998,4]
[346038338,1734651033340,-609.21,0.00023998,4]
[346038339,1734651033350,-500.0,0.00023998,4]
[346038340,1734651033359,-500.0,0.00023998,4]
[346038341,1734651033368,-500.0,0.00023998,4]
[346038342,1734651033380,-622.68,0.00023998,4]
[346038343,1734651033389,-150.0,0.00023999,2]
[346038344,1734651033398,-500.0,0.00023999,4]
[346038345,1734651033407,-500.0,0.00023999,4]
[346038346,1734651033416,-500.0,0.00023999,4]
[346038347,1734651033426,-500.0,0.00023999,4]
[346038348,1734651033438,-500.0,0.00023999,4]
[346038349,1734651033448,-500.0,0.00023999,4]
[346038350,1734651033457,-500.0,0.00023999,4]
[346038351,1734651033467,-500.0,0.00023999,4]
[346038352,1734651033476,-500.0,0.00023999,4]
[346038353,1734651033485,-500.0,0.00023999,4]
[346038354,1734651033494,-266.08342244,0.00023999,4]
[346038355,1734651033503,-500.0,0.00023999,4]
[346038356,1734651033512,-500.0,0.00023999,4]
[346038357,1734651033521,-500.0,0.00023999,4]
[346038358,1734651033530,-500.0,0.00023999,4]
[346038359,1734651033539,-500.0,0.00023999,4]
[346038360,1734651033549,-500.0,0.00023999,4]
[346038361,1734651033558,-500.0,0.00023999,4]
[346038362,1734651033567,-500.0,0.00023999,4]
[346038363,1734651033576,-500.0,0.00023999,4]
[346038364,1734651033586,-500.0,0.00023999,4]
[346038365,1734651033596,-500.0,0.00023999,4]
[346038366,1734651033605,-615.80335995,0.00023999,4]
[346038367,1734651033615,-500.0,0.00023999,4]
[346038368,1734651033626,-500.0,0.00023999,4]
[346038369,1734651033636,-500.0,0.00023999,4]
[346038370,1734651033646,-500.0,0.00023999,4]
[346038371,1734651033655,-500.0,0.00023999,4]
[346038372,1734651033665,-500.0,0.00023999,4]
[346038373,1734651033675,-80.25261529,0.00023999,4]
[346038376,1734651037718,-419.74738471,0.00023999,4]
[346038377,1734651037729,-500.0,0.00023999,4]
[346038378,1734651037738,-500.0,0.00023999,4]
[346038379,1734651037747,-500.0,0.00023999,4]
[346038380,1734651037757,-500.0,0.00023999,4]
[346038381,1734651037766,-500.0,0.00023999,4]
[346038382,1734651037779,-500.0,0.00023999,4]
[346038383,1734651037789,-1000.0,0.00023999,5]
[346038384,1734651037799,-1000.0,0.00023999,5]
[346038385,1734651037808,-1000.0,0.00023999,5]
[346038386,1734651037818,-1000.0,0.00023999,5]
[346038387,1734651037827,-1000.0,0.00023999,5]
[346038388,1734651037837,-1000.0,0.00023999,5]
[346038389,1734651037846,-1000.0,0.00023999,5]
[346038390,1734651037855,-1000.0,0.00023999,5]
[346038391,1734651037865,-1000.0,0.00023999,5]
[346038392,1734651037874,-211.8878704,0.00023999,5]
[346038393,1734651037886,-422.48,0.00023999,4]
[346038394,1734651037895,-166.90278283,0.00023999,4]
[346038395,1734651037905,-255.44,0.00023999,4]
[346038396,1734651037914,-500.0,0.00023999,4]
[346038397,1734651037923,-500.0,0.00023999,4]
[346038398,1734651037933,-500.0,0.00023999,4]
[346038399,1734651037942,-400.81,0.00023999,4]
[346038400,1734651037951,-500.0,0.00023999,4]
[346038401,1734651037960,-500.0,0.00023999,4]
[346038402,1734651037969,-500.0,0.00023999,4]
[346038403,1734651037979,-523.82,0.00023999,4]
[346038404,1734651037987,-500.0,0.00023999,4]
[346038405,1734651037996,-500.0,0.00023999,4]
[346038406,1734651038006,-500.0,0.00023999,4]
[346038407,1734651038015,-500.0,0.00023999,4]
[346038408,1734651038024,-500.0,0.00023999,4]
[346038409,1734651038035,-342.15270053,0.00023999,4]
[346038410,1734651038046,-593.85,0.00023999,4]
[346038411,1734651038055,-500.0,0.00023999,4]
[346038412,1734651038064,-500.0,0.00023999,4]
[346038413,1734651038074,-500.0,0.00023999,4]
[346038414,1734651038083,-187.77,0.00023999,4]
[346038415,1734651038094,-275.30302261,0.00023999,2]
[346038416,1734651038103,-500.0,0.00023999,4]
[346038417,1734651038112,-500.0,0.00023999,4]
[346038418,1734651038121,-500.0,0.00023999,4]
[346038419,1734651038131,-500.0,0.00023999,4]
[346038420,1734651038140,-618.21,0.00023999,4]
[346038421,1734651038149,-500.0,0.00023999,4]
[346038422,1734651038157,-43346.98924494,0.00024,2]
[346038424,1734651038177,-303.10308288,0.00024,2]
[346038427,1734651038188,-6270.14671234,0.00024,2]
[346038431,1734651038203,-679387.5364181,0.00024,2]
[346038434,1734651038212,-6300.0,0.00024,9]
[346038437,1734651038221,-6338.69536739,0.00024,2]
[346038440,1734651038230,-2200.0,0.00024,8]
[346038443,1734651038239,-574.20388946,0.0002401,2]
[346038446,1734651038248,-303.66404167,0.00024011,2]
[346038448,1734651038256,-192.16121,0.00024088,7]
[346038450,1734651038265,-3300.0,0.000241,8]
[346038452,1734651038274,-574.20388946,0.00024121,2]
[346038454,1734651038283,-303.66404167,0.00024122,2]
[346038456,1734651038292,-150.0,0.00024136,2]
[346038458,1734651038300,-150.0,0.00024153,4]
[346038460,1734651038309,-500.0,0.0002416,4]
[346038462,1734651038318,-500.0,0.00024173,4]
[346038464,1734651038327,-500.0,0.00024173,4]
[346038466,1734651038336,-11551.49999989,0.000242,2]
[346038468,1734651038345,-4400.0,0.000242,8]
[346038470,1734651038354,-574.20388946,0.00024233,2]
[346038472,1734651038363,-303.66404167,0.00024233,2]
[346038474,1734651038373,-192.16121,0.00024288,7]
[346038476,1734651038382,-483.68462989,0.00024299,120]
[346038478,1734651038391,-5500.0,0.000243,8]
[346038480,1734651038400,-1000.0,0.00024327,15]
[346038482,1734651038413,-574.20388946,0.00024344,2]
[346038484,1734651038422,-303.66404167,0.00024344,2]
[346038486,1734651038431,-4156.36644202,0.0002438,2]
[346038488,1734651038441,-500.0,0.00024382,4]
[346038490,1734651038450,-500.0,0.00024382,4]
[346038492,1734651038459,-500.0,0.00024382,4]
[346038494,1734651038468,-500.0,0.00024382,4]
[346038496,1734651038477,-500.0,0.00024382,4]
[346038498,1734651038486,-500.0,0.00024382,4]
[346038500,1734651038496,-500.0,0.00024382,4]
[346038502,1734651038505,-585.84,0.00024382,4]
[346038504,1734651038514,-500.0,0.00024382,4]
[346038506,1734651038523,-606.03,0.00024382,4]
[346038508,1734651038532,-500.0,0.00024382,4]
[346038510,1734651038541,-500.0,0.00024382,4]
[346038512,1734651038550,-500.0,0.00024382,4]
[346038514,1734651038560,-999.97,0.00024382,4]
[346038516,1734651038569,-500.0,0.00024382,4]
[346038518,1734651038582,-500.0,0.00024382,4]
[346038521,1734651038591,-500.0,0.00024382,4]
[346038522,1734651038600,-500.0,0.00024382,4]
[346038525,1734651038610,-500.0,0.00024382,4]
[346038526,1734651038619,-500.0,0.00024382,4]
[346038528,1734651038628,-500.0,0.00024382,4]
[346038530,1734651038641,-500.0,0.00024382,4]
[346038532,1734651038651,-500.0,0.00024382,4]
[346038535,1734651038661,-427.31,0.00024382,4]
[346038537,1734651038670,-500.0,0.00024382,4]
[346038539,1734651038679,-500.0,0.00024382,4]
[346038541,1734651038689,-1100.0,0.000244,8]
[346038543,1734651038698,-500.0,0.00024447,4]
[346038544,1734651038707,-500.0,0.00024447,4]
[346038547,1734651038716,-574.20388946,0.00024455,2]
[346038549,1734651038725,-303.66404167,0.00024456,2]
[346038551,1734651038734,-176.67514716,0.00024466,4]
[346038553,1734651038743,-192.16121,0.00024488,7]
[346038554,1734651038753,-1369.71011409,0.000245,30]
[346038556,1734651038762,-1140.51654315,0.000245,2]
[346038558,1734651038773,-1100.0,0.000245,8]
[346038560,1734651038783,-18247.3377319,0.000245,2]
[346038562,1734651038792,-574.20388946,0.00024566,2]
[346038564,1734651038802,-303.66404167,0.00024567,2]
[346038566,1734651038811,-150.0,0.0002457,4]
[346038568,1734651038820,-1425.0,0.000246,3]
[346038570,1734651038829,-600.60057457,0.000246,2]
[346038572,1734651038838,-1100.0,0.000246,8]
[346038574,1734651038847,-5000.0,0.000246,2]
[346038575,1734651038856,-150.0,0.00024658,2]
[346038576,1734651038865,-5544.13,0.00024668,2]
[346038577,1734651038874,-488.61364,0.00024669,2]
[346038578,1734651038885,-574.20388946,0.00024678,2]
[346038579,1734651038894,-303.66404167,0.00024678,2]
[346038580,1734651038903,-500.0,0.00024678,4]
[346038581,1734651038913,-500.0,0.00024678,4]
[346038582,1734651038922,-500.0,0.00024678,4]
[346038583,1734651038931,-740.05,0.00024678,4]
[346038584,1734651038940,-500.0,0.00024678,4]
[346038585,1734651038949,-500.0,0.00024678,4]
[346038586,1734651038958,-500.0,0.00024678,4]
[346038587,1734651038967,-500.0,0.00024678,4]
[346038588,1734651038975,-500.0,0.00024678,4]
[346038589,1734651038985,-500.0,0.00024678,4]
[346038590,1734651038994,-2241.43,0.00024678,4]
[346038591,1734651039003,-500.0,0.00024678,4]
[346038592,1734651039012,-1027.44,0.00024678,4]
[346038593,1734651039021,-500.0,0.00024678,4]
[346038594,1734651039030,-500.0,0.00024678,4]
[346038595,1734651039039,-500.0,0.00024678,4]
[346038597,1734651039048,-500.0,0.00024678,4]
[346038599,1734651039057,-500.0,0.00024678,4]
[346038601,1734651039066,-500.0,0.00024678,4]
[346038603,1734651039075,-416.9,0.00024678,4]
[346038605,1734651039085,-622.68,0.00024678,4]
[346038607,1734651039094,-192.16121,0.00024688,7]
[346038609,1734651039103,-500.0,0.00024698,4]
[346038611,1734651039112,-151.0,0.00024699,2]
[346038613,1734651039121,-3884.0,0.00024699,2]
[346038615,1734651039131,-150.0,0.00024699,2]
[346038617,1734651039140,-13747.0,0.00024699,2]
[346038619,1734651039149,-1168.0,0.00024699,2]
[346038621,1734651039158,-564.0,0.00024699,2]
[346038623,1734651039168,-200.0,0.000247,2]
[346038625,1734651039178,-5000.0,0.000247,2]
[346038627,1734651039187,-1871.53331456,0.000247,2]
[346038629,1734651039196,-1100.0,0.000247,9]
[346038631,1734651039205,-500.0,0.00024708,4]
[346038633,1734651039215,-500.0,0.00024708,4]
[346038635,1734651039223,-567.01,0.00024708,4]
[346038637,1734651039232,-426.82,0.00024708,4]
[346038639,1734651039241,-500.0,0.00024708,4]
[346038641,1734651039250,-500.0,0.00024708,4]
[346038643,1734651039259,-500.0,0.00024708,4]
[346038645,1734651039268,-500.0,0.00024708,4]
[346038647,1734651039277,-500.0,0.00024708,4]
[346038649,1734651039287,-500.0,0.00024708,4]
[346038651,1734651039295,-500.0,0.00024708,4]
[346038653,1734651039305,-500.0,0.00024708,4]
[346038655,1734651039314,-500.0,0.00024708,4]
[346038657,1734651039323,-500.0,0.00024708,4]
[346038659,1734651039332,-500.0,0.00024708,4]
[346038661,1734651039341,-500.0,0.00024708,4]
[346038663,1734651039350,-500.0,0.00024708,4]
[346038665,1734651039359,-500.0,0.00024708,4]
[346038667,1734651039369,-500.0,0.00024708,4]
[346038669,1734651039378,-500.0,0.00024708,4]
[346038671,1734651039388,-500.0,0.00024708,4]
[346038673,1734651039397,-500.0,0.00024708,4]
[346038675,1734651039406,-500.0,0.00024708,4]
[346038677,1734651039416,-213.54,0.00024708,4]
[346038679,1734651039425,-500.0,0.00024708,4]
[346038681,1734651039434,-500.0,0.00024708,4]
[346038683,1734651039443,-500.0,0.00024708,4]
[346038684,1734651039452,-500.0,0.00024708,4]
[346038686,1734651039461,-500.0,0.00024708,4]
[346038688,1734651039471,-500.0,0.00024708,4]
[346038690,1734651039480,-600.49,0.00024708,4]
[346038692,1734651039489,-500.0,0.00024708,4]
[346038694,1734651039498,-500.0,0.00024708,4]
[346038696,1734651039507,-500.0,0.00024708,4]
[346038699,1734651039517,-529.80574538,0.00024708,4]
[346038701,1734651039526,-500.0,0.00024708,4]
[346038703,1734651039535,-500.0,0.00024708,4]
[346038705,1734651039545,-500.0,0.00024708,4]
[346038707,1734651039556,-500.0,0.00024708,4]
[346038708,1734651039565,-188.15738416,0.00024708,4]
[346038710,1734651039574,-500.0,0.00024708,4]
[346038712,1734651039584,-500.0,0.00024708,4]
[346038715,1734651039594,-500.0,0.00024708,4]
[346038717,1734651039604,-500.0,0.00024708,4]
[346038718,1734651039613,-500.0,0.00024708,2]
[346038720,1734651039623,-500.0,0.00024708,4]
[346038723,1734651039633,-500.0,0.00024708,4]
[346038724,1734651039642,-501.97913691,0.00024708,4]
[346038726,1734651039651,-500.0,0.00024708,4]
[346038728,1734651039660,-500.0,0.00024708,4]
[346038730,1734651039669,-500.22745999,0.00024708,4]
[346038732,1734651039679,-500.0,0.00024708,4]
[346038734,1734651039688,-452.0910056,0.00024708,4]
[346038737,1734651039697,-500.0,0.00024708,4]
[346038739,1734651039706,-502.91890638,0.00024708,4]
[346038741,1734651039715,-500.0,0.00024708,4]
[346038743,1734651039724,-500.0,0.00024708,4]
[346038745,1734651039734,-500.0,0.00024708,4]
[346038747,1734651039743,-500.0,0.00024708,4]
[346038749,1734651039752,-604.9514803,0.00024708,4]
[346038751,1734651039762,-500.0,0.00024708,4]
[346038754,1734651039775,-500.0,0.00024708,4]
[346038756,1734651039785,-500.0,0.00024708,4]
[346038757,1734651039795,-500.0,0.00024708,4]
[346038759,1734651039806,-500.0,0.00024708,4]
[346038761,1734651039815,-500.0,0.00024708,4]
[346038763,1734651039824,-500.0,0.00024708,4]
[346038765,1734651039834,-200.41,0.00024708,4]
[346038768,1734651039843,-500.0,0.00024708,4]
[346038770,1734651039852,-500.0,0.00024708,4]
[346038771,1734651039863,-500.0,0.00024708,4]
[346038773,1734651039872,-500.0,0.00024708,4]
[346038775,1734651039881,-500.0,0.00024708,4]
[346038777,1734651039891,-500.0,0.00024708,4]
[346038779,1734651039900,-500.0,0.00024708,4]
[346038781,1734651039909,-500.0,0.00024708,4]
[346038783,1734651039918,-546.15981946,0.00024708,4]
[346038785,1734651039927,-500.0,0.00024708,4]
[346038803,1734651040078,-537.85,0.00024708,4]
[346038805,1734651040087,-706.32,0.00024708,4]
[346038807,1734651040097,-671.85,0.00024708,4]
[346038809,1734651040106,-296.41,0.00024708,4]
[346038811,1734651040115,-500.0,0.00024708,4]
[346038813,1734651040123,-500.0,0.00024708,4]
[346038815,1734651040134,-500.0,0.00024708,4]
[346038817,1734651040143,-437.54,0.00024708,4]
[346038819,1734651040152,-847.45,0.00024708,4]
[346038821,1734651040162,-908.65,0.00024708,4]
[346038823,1734651040171,-500.0,0.00024708,4]
[346038825,1734651040180,-500.0,0.00024708,4]
[346038827,1734651040189,-976.77,0.00024708,4]
[346038829,1734651040198,-500.0,0.00024708,4]
[346038831,1734651040206,-500.0,0.00024708,4]
[346038833,1734651040216,-500.0,0.00024708,4]
[346038835,1734651040225,-371.13122337,0.00024708,4]
[346038837,1734651040234,-500.0,0.00024708,4]
[346038839,1734651040243,-500.0,0.00024708,4]
[346038841,1734651040252,-500.0,0.00024708,4]
[346038843,1734651040261,-500.0,0.00024708,4]
[346038845,1734651040270,-2457.81,0.00024708,4]
[346038846,1734651040279,-500.0,0.00024708,4]
[346038848,1734651040288,-500.0,0.00024708,4]
[346038851,1734651040298,-500.0,0.00024708,4]
[346038852,1734651040307,-500.0,0.00024708,4]
[346038855,1734651040316,-848.68,0.00024708,4]
[346038857,1734651040325,-1107.71,0.00024708,4]
[346038858,1734651040334,-500.0,0.00024708,4]
[346038861,1734651040343,-556.8,0.00024708,4]
[346038863,1734651040352,-1189.77,0.00024708,4]
[346038865,1734651040361,-500.0,0.00024708,4]
[346038867,1734651040370,-582.89,0.00024708,4]
[346038869,1734651040381,-500.0,0.00024708,4]
[346038871,1734651040390,-658.67,0.00024708,4]
[346038873,1734651040399,-500.0,0.00024708,4]
[346038876,1734651040408,-500.0,0.00024708,4]
[346038878,1734651040418,-500.0,0.00024708,4]
[346038879,1734651040428,-181.21,0.00024713,4]
[346038881,1734651040437,-875.82,0.00024713,4]
[346038883,1734651040446,-2736.39,0.00024713,4]
[346038885,1734651040454,-500.0,0.00024713,4]
[346038887,1734651040463,-646.65,0.00024713,4]
[346038889,1734651040472,-500.0,0.00024713,4]
[346038891,1734651040481,-500.0,0.00024713,4]
[346038893,1734651040491,-563.16502913,0.00024721,4]
[346038895,1734651040500,-500.0,0.00024721,4]
[346038897,1734651040508,-150.0,0.0002475,2]
[346038899,1734651040518,-500.0,0.00024773,2]
[346038901,1734651040527,-1000.0,0.00024776,20]
[346038902,1734651040536,-574.20388946,0.00024789,2]
[346038904,1734651040545,-303.66404167,0.00024789,2]
[346038906,1734651040554,-154.09,0.00024789,2]
[346038907,1734651040563,-154.09,0.0002479,2]
[346038909,1734651040573,-154.09,0.0002479,2]
[346038911,1734651040582,-154.09,0.0002479,2]
[346038913,1734651040591,-154.09,0.0002479,2]
[346038914,1734651040601,-154.09,0.0002479,2]
[346038916,1734651040611,-154.09,0.0002479,2]
[346038918,1734651040619,-7269.28716138,0.00024799,2]
[346038919,1734651040628,-500816.30958778,0.00024799,2]
[346038921,1734651040643,-1200.0,0.000248,9]
[346038923,1734651040653,-4704603.30399344,0.000248,2]
[346038925,1734651040662,-2088.0,0.000248,2]
[346038926,1734651040671,-1871.53331456,0.000248,2]
[346038928,1734651040681,-1000.0,0.000248,10]
[346038930,1734651040690,-150.0,0.0002481,2]
[346038931,1734651040699,-2517.85575506,0.00024826,14]
[346038933,1734651040709,-1514.71316149,0.00024832,14]
[346038935,1734651040719,-1423.55202689,0.00024833,14]
[346038937,1734651040728,-2517.85575506,0.00024835,14]
[346038938,1734651040737,-200.0,0.00024837,14]
[346038940,1734651040746,-200.0,0.00024847,14]
[346038942,1734651040755,-2517.85575506,0.0002485,14]
[346038944,1734651040764,-764.79645946,0.00024851,14]
[346038946,1734651040776,-200.0,0.00024855,14]
[346038948,1734651040785,-2517.85575506,0.00024856,14]
[346038949,1734651040795,-764.79645946,0.00024857,14]
[346038951,1734651040804,-200.0,0.00024859,14]
[346038953,1734651040813,-1514.71316149,0.00024862,14]
[346038954,1734651040822,-764.79645946,0.00024864,14]